[Event "121st Swiss Championship 2022"]
[Site "Samnaun-Compatsch"]
[Date "2022.07.06"]
[Round "3.11"]
[White "Bex, Pierre-Alain"]
[Black "Angst, Oliver"]
[Result "0-1"]
[ECO "B32"]
[WhiteElo "2189"]
[BlackElo "2203"]
[Annotator "TA"]
[PlyCount "98"]
[EventDate "2022.06.28"]
[EventType "swiss"]
[EventCountry "SUI"]
[SourceTitle "playchess.com"]
[Source "ChessBase"]
[SourceQuality "1"]
[TimeControl "40/5400+30:1800+30"]

{[%evp 15,98,42,42,0,13,0,0,0,0,-8,-18,-12,-7,-21,0,-16,0,-16,-28,-57,-53,-55,-53,-57,-42,-58,-63,-63,-47,-93,-19,-22,-20,-43,-42,-45,-50,-53,-31,-77,0,0,0,0,10,0,53,40,58,35,25,17,26,0,0,-14,0,0,0,0,0,-10,0,0,0,-12,0,0,0,0,0,-171,-192,-186,-176,-159,-132,-12838,-12839,-12838,-12839,-12842,-12843,-12843,-12843]} 1. e4 {[%emt 0:00:08]} c5 {[%emt 0:00:06]} 2. Nf3 {[%emt 0:00:03]} Nc6 {[%emt 0:00:09]} 3. d4 {[%emt 0:00:07]} cxd4 {[%emt 0:00:12]} 4. Nxd4 {[%emt 0:00:05]} e5 {[%emt 0:00:05]} 5. Nb5 {[%emt 0:02:54]} a6 {[%emt 0:00:23]} 6. Nd6+ {[%emt 0:00:19]} Bxd6 {[%emt 0:00:07]} 7. Qxd6 {[%emt 0:00:07]} Qe7 {[%emt 0:00:05]} 8. Qxe7+ {[%emt 0:03:50]} Ngxe7 {[%emt 0:01:07]} 9. c3 {[%emt 0:00:27] B32: Sicilian: Löwenthal and Kalashnikov Variations.} d5 {[%emt 0:01:09]} 10. exd5 {[%emt 0:01:39]} Nxd5 {[%emt 0:00:09]} 11. Nd2 {[%emt 0:07:14] The position is equal.} Be6 {[%emt 0:12:24]} 12. g3 {[%emt 0:09:37] [#]} O-O-O $146 {[%emt 0:05:08]} ({Predecessor:} 12... f5 13. Bg2 O-O 14. O-O Rad8 15. Re1 Rfe8 16. Nb3 h6 17. Nc5 Bc8 18. a3 Na5 {½-½ (44) Perestjuk,M (2174)-Fluechter,G (2162) Osnabrueck 2015}) 13. Nc4 {[%emt 0:03:01]} h6 {[%emt 0:05:06]} 14. a4 {[%emt 0:01:19]} Rhe8 {[%emt 0:03:11]} 15. Be2 {[%emt 0:07:40]} Nf4 {[%emt 0:25:27]} 16. gxf4 {[%emt 0:04:56]} Bxc4 {[%emt 0:01:56]} 17. Bxc4 {[%emt 0:01:24]} exf4+ {[%emt 0:00:07][%mdl 64] Discovered Attack} 18. Be2 $1 {[%emt 0:01:24]} f3 {[%emt 0:00:08][%mdl 64] Pin} 19. Be3 {[%emt 0:00:08]} fxe2 {[%emt 0:00:07]} 20. Kxe2 {[%emt 0:00:05]} f5 {[%emt 0:00:08] Threatens to win with ...f4.} 21. Kf3 {[%emt 0:05:20]} Ne5+ {[%emt 0:10:23]} 22. Kg2 {[%emt 0:00:34] [#]} (22. Kg3 $15) 22... Re6 {[%emt 0:00:56]} (22... Nc4 $1 $17 23. Bd4 Nxb2) 23. Rhd1 $11 {[%emt 0:00:53]} Rg6+ {[%emt 0:05:37]} 24. Kh1 {[%emt 0:02:38]} Nd3 {[%emt 0:07:06]} 25. Rg1 {[%emt 0:05:52]} Rxg1+ {[%emt 0:02:00]} 26. Rxg1 $15 {[%emt 0:00:23][%mdl 4096] Endgame KRB-KRN} g5 {[%emt 0:02:07]} 27. b3 {[%emt 0:02:44]} (27. h4 $15) 27... f4 {[%emt 0:02:45] Black is more active.} ({Better is} 27... Ne5 $17) 28. Bd4 $11 {[%emt 0:00:32]} f3 {[%emt 0:00:31][%cal Od8d4] aiming for ...Rxd4!} 29. h3 {[%emt 0:02:44]} Rd5 {[%emt 0:05:49]} 30. Kh2 {[%emt 0:01:10]} Kd7 {[%emt 0:02:53]} (30... Nf4 $11) 31. Kg3 $14 {[%emt 0:03:58]} Ke6 {[%emt 0:01:57]} 32. Rd1 {[%emt 0:08:29]} Nf4 {[%emt 0:00:23]} 33. Kxf3 {[%emt 0:02:25]} Kf5 {[%emt 0:01:35]} 34. Rh1 {[%emt 0:02:23]} (34. Re1 $5 {[%cal Re1e7]}) 34... h5 {[%emt 0:00:57][%cal Of4h3]} 35. Ke3 {[%emt 0:02:31]} Rd6 {[%emt 0:01:19][%mdl 1024] Black has compensation.} 36. Kd2 $1 {[%emt 0:01:38]} Re6 {[%emt 0:01:08] And now ...Re2+ would win.} 37. Be3 {[%emt 0:00:56]} Rd6+ {[%emt 0:00:11]} 38. Bd4 {[%emt 0:00:08]} Re6 {[%emt 0:00:01]} 39. Be3 {[%emt 0:00:09]} Rd6+ {[%emt 0:04:05]} 40. Bd4 {[%emt 0:00:15]} Ke4 {[%emt 0:00:57]} 41. h4 {[%emt 0:36:11]} g4 {[%emt 0:15:24][%cal Bg5g4,Bg4g3,Bg3g2][%mdl 32]} 42. Re1+ $1 {[%emt 0:00:00]} Kf3 {[%emt 0:00:38]} 43. Re3+ $2 {[%emt 0:00:00]} (43. Re7 $11) 43... Kxf2 $19 {[%emt 0:01:09] ...g3 is the strong threat.} 44. Re7+ {[%emt 0:00:00]} Kf3 {[%emt 0:04:54] White must now prevent ...Ne6.} 45. Rxb7 {[%emt 0:00:00]} g3 {[%emt 0:00:26]} 46. b4 $2 {[%emt 0:00:00][%mdl 8192] This move loses the game for White.} (46. Kc2 $17) 46... g2 {[%emt 0:02:18] Black is clearly winning.} 47. Rg7 {[%emt 0:00:00]} Ng6 {[%emt 0:00:26]} 48. Kc2 {[%emt 0:00:00] [#]} Rxd4 $1 {[%emt 0:00:40][%mdl 512]} 49. Rxg6 {[%emt 0:00:00]} Rg4 {[%emt 0:00:06] Weighted Error Value: White=0.32/Black=0.11 (very precise)} 0-1

[Event "121st Swiss Championship 2022"]
[Site "Samnaun-Compatsch"]
[Date "2022.07.06"]
[Round "4.1"]
[White "Baenziger, Fabian"]
[Black "Gaehwiler, Gabriel"]
[Result "1-0"]
[ECO "A50"]
[WhiteElo "2451"]
[BlackElo "2420"]
[Annotator "TA"]
[PlyCount "79"]
[EventDate "2022.06.28"]
[EventType "swiss"]
[EventCountry "SUI"]
[SourceTitle "playchess.com"]
[Source "ChessBase"]
[SourceQuality "1"]
[TimeControl "40/5400+30:1800+30"]

{[%evp 11,79,27,31,32,104,107,100,107,104,103,102,106,100,100,101,99,114,93,123,116,127,127,120,104,103,92,131,70,79,79,75,22,5,-31,-33,-26,-22,-16,-50,-41,-53,-52,0,0,0,-5,177,187,216,227,333,313,284,293,285,290,267,117,443,443,443,443,4702,1834,1229,889,926,842,717,564]} 1. d4 {[%emt 0:00:04]} Nf6 {[%emt 0:00:11]} 2. c4 {[%emt 0:00:07]} b6 {[%emt 0:09:34]} 3. Nc3 {[%emt 0:00:53]} Bb7 {[%emt 0:00:08]} 4. Qc2 {[%emt 0:01:55]} d5 {[%emt 0:04:53]} 5. cxd5 {[%emt 0:01:06]} Nxd5 {[%emt 0:00:05]} 6. Nf3 {[%emt 0:00:04]} e6 {[%emt 0:02:17]} 7. e4 {[%emt 0:02:00] A50: Queen's Fianchetto Defence (1 d4 Nf6 2 c4 b6).} Nb4 {[%emt 0:17:59] [#]} ({Better is} 7... Nxc3 $14 8. bxc3 Nd7) 8. Qa4+ $146 {[%emt 0:11:22]} ({Predecessor:} 8. Qb3 c5 9. a3 cxd4 10. Bb5+ N4c6 11. Ne2 a6 12. Bd3 Be7 13. Bf4 O-O 14. Qc4 b5 {0-1 (39) Muenzenberg,D (1728)-Weidenhoefer,R (1696) Mittelfranken 2014}) 8... Qd7 {[%emt 0:08:57]} 9. Bb5 {[%emt 0:00:33] White is better.} c6 {[%emt 0:02:17]} 10. Be2 {[%emt 0:00:19]} Be7 {[%emt 0:04:54]} 11. a3 {[%emt 0:05:16]} N4a6 {[%emt 0:01:14]} 12. O-O {[%emt 0:07:54]} O-O {[%emt 0:00:26]} 13. Rd1 {[%emt 0:00:55]} Nc7 {[%emt 0:05:30]} 14. Be3 {[%emt 0:04:21]} Qe8 {[%emt 0:06:34]} 15. Rac1 {[%emt 0:05:17] White is much more active.} Nd7 {[%emt 0:04:11]} 16. Bf4 {[%emt 0:05:05]} Qd8 {[%emt 0:02:38]} 17. h3 {[%emt 0:06:01]} a6 {[%emt 0:01:12]} 18. Qb3 {[%emt 0:07:25]} Rc8 {[%emt 0:07:19]} 19. a4 {[%emt 0:08:37]} (19. Na4 $16) 19... b5 $1 $14 {[%emt 0:02:04]} 20. Na2 {[%emt 0:05:06]} Ne8 {[%emt 0:05:01][%cal Ob5b4]} 21. Qc2 {[%emt 0:09:19]} (21. axb5 cxb5 22. Qe3 Nef6 $11) (21. Nd2 $16) 21... Nef6 $11 {[%emt 0:02:47]} 22. Be3 {[%emt 0:00:04]} c5 {[%emt 0:03:38]} 23. dxc5 {[%emt 0:00:21] Ne5 is the strong threat.} Bxe4 {[%emt 0:00:13]} 24. Qd2 {[%emt 0:01:26]} bxa4 {[%emt 0:04:09]} 25. Bxa6 {[%emt 0:02:44]} Rc7 {[%emt 0:01:44] aiming for ...Bxf3.} 26. Bb5 {[%emt 0:07:04] Black must now prevent c6.} Qc8 {[%emt 0:00:53]} (26... Nd5 $15 {might be stronger.} 27. c6 Bxf3 28. gxf3 Ne5) 27. c6 $36 {[%emt 0:00:26][%mdl 2048] White has some pressure.} Bxc6 {[%emt 0:01:34]} 28. Bf4 {[%emt 0:01:26] Hoping for Nd4.} Ne4 $2 {[%emt 0:01:05] [#]} (28... e5 $1 $11 {and Black stays safe.} 29. Bxc6 Rxc6 30. Nxe5 Nxe5 31. Bxe5 Rxc1 32. Nxc1 Rd8) 29. Qa5 $1 $18 {[%emt 0:01:36]} e5 {[%emt 0:01:00]} 30. Nxe5 {[%emt 0:01:25]} Bc5 {[%emt 0:00:24]} (30... Nxe5 {keeps fighting.} 31. Bxe5 Nxf2) 31. Nxc6 {[%emt 0:02:49]} Rxc6 {[%emt 0:00:04]} 32. Bxc6 {[%emt 0:00:08]} ({Stronger than} 32. Qxa4 Bxf2+ 33. Kh1 Ndc5 $15) 32... Qxc6 {[%emt 0:00:10]} 33. Be3 {[%emt 0:00:26]} Qe6 {[%emt 0:00:44]} 34. Bxc5 {[%emt 0:01:27]} (34. Qxa4 $18 Bxe3 35. fxe3) 34... Ndxc5 {[%emt 0:00:33][%mdl 8192] [#]} (34... Nexc5 $16 {is more resistant.} 35. Nc3 (35. Rxc5 Nxc5 36. Nc3 Qc4 $14) 35... Nb3 36. Qxa4 Nb6) 35. Rd8 $1 {[%emt 0:01:24] White is clearly winning.} g6 {[%emt 0:00:46]} (35... Qxa2 $2 {is a self mate.} 36. Rxf8+ Kxf8 37. Qd8#) 36. Rxc5 {[%emt 0:01:04]} Qxa2 {[%emt 0:00:35]} (36... Nxc5 $142 37. Rxf8+ Kxf8 38. Qxc5+ Kg8) 37. Rcc8 {[%emt 0:00:31]} (37. Rxf8+ $142 Kxf8 38. Qa8+ Kg7 39. Qxe4 Qxb2 40. Qxa4) 37... Rxd8 {[%emt 0:00:18]} 38. Rxd8+ {[%emt 0:00:48]} Kg7 {[%emt 0:00:02]} 39. Qe5+ {[%emt 0:00:05]} Nf6 {[%emt 0:00:02]} 40. Rd6 {[%emt 0:00:04] Weighted Error Value: White=0.13 (very precise) /Black=0.40} 1-0

[Event "121st Swiss Championship 2022"]
[Site "Samnaun-Compatsch"]
[Date "2022.07.06"]
[Round "4.2"]
[White "Udipi, Kala Kishan"]
[Black "Gallagher, Joseph G."]
[Result "0-1"]
[ECO "E94"]
[WhiteElo "2057"]
[BlackElo "2447"]
[Annotator "TA"]
[PlyCount "50"]
[EventDate "2022.06.28"]
[EventType "swiss"]
[EventCountry "SUI"]
[SourceTitle "playchess.com"]
[Source "ChessBase"]
[SourceQuality "1"]
[TimeControl "40/5400+30:1800+30"]

{[%evp 16,50,50,38,77,0,27,27,22,27,27,0,0,0,0,0,29,0,0,-74,2,0,25,-427,-441,-864,-859,-834,-829,-988,-988,-975,-777,-768,-755,-29991,-29992]} 1. d4 {[%emt 0:00:02]} Nf6 {[%emt 0:00:48]} 2. c4 {[%emt 0:00:18]} g6 {[%emt 0:00:27]} 3. Nc3 {[%emt 0:00:16]} Bg7 {[%emt 0:00:05]} 4. e4 {[%emt 0:00:24]} d6 {[%emt 0:00:04]} 5. Nf3 {[%emt 0:00:12]} O-O {[%emt 0:00:05]} 6. Be2 {[%emt 0:00:15]} Nbd7 {[%emt 0:00:58]} 7. O-O {[%emt 0:00:33]} e5 {[%emt 0:00:05]} 8. Be3 {[%emt 0:00:50]} Qe7 {[%emt 0:00:22]} 9. Qc2 {[%emt 0:04:42]} c6 {[%emt 0:00:22] E94: King's Indian: Classical: 6 Be2 e5 7 0-0: Various Black 7th moves.} 10. Rab1 {[%emt 0:00:13] [#]} (10. d5 $16) 10... Ng4 $146 {[%emt 0:19:46]} ({Predecessor:} 10... exd4 11. Nxd4 Re8 12. f3 Nh5 13. Qd2 f5 14. Rbd1 f4 15. Bf2 Be5 16. b4 Qg7 17. Rc1 {0-1 (36) Duncan,C (2293)-Libiszewski,F (2493) Cagliari 2012}) 11. Bg5 {[%emt 0:01:59][%cal Be3g5,Bg5h4,Bh4g3,Bg3h2][%mdl 32]} f6 {[%emt 0:02:30] [#] White must now prevent ...exd4. White has an edge.} 12. Bh4 {[%emt 0:00:35]} Nh6 {[%emt 0:00:09][%cal Bg4h6,Bh6f5,Bf5d4,Bd4f3][%mdl 32]} 13. h3 {[%emt 0:16:44]} g5 {[%emt 0:19:22]} 14. Bg3 {[%emt 0:00:32]} f5 $1 {[%emt 0:01:37]} 15. exf5 {[%emt 0:09:33]} exd4 {[%emt 0:17:11]} 16. Ne4 {[%emt 0:00:53]} (16. f6 $5 Bxf6 17. Ne4 $11) 16... Nxf5 {[%emt 0:02:38]} 17. Nexg5 {[%emt 0:02:36]} (17. Rbe1 $11) 17... Ne5 {[%emt 0:03:00]} (17... h6 $17 18. Ne4 d5) 18. Bh2 $11 {[%emt 0:15:25][%cal Oc4c5]} h6 {[%emt 0:01:11]} 19. Ne4 {[%emt 0:01:44][%mdl 8192] [#] Now White is beyond hope.} (19. Nxe5 $11 dxe5 20. Ne4) 19... d3 $1 $19 {[%emt 0:00:31]} 20. Bxd3 {[%emt 0:14:19]} (20. Qd1 $142 dxe2 21. Qxe2) 20... Nxf3+ {[%emt 0:00:15][%mdl 64] Remove Defender} 21. gxf3 {[%emt 0:00:14]} Nd4 {[%emt 0:00:05][%csl LRc2,LRf3,LRh3][%mdl 64] Discovered Attack, Double Attack} 22. Qd1 {[%emt 0:01:49]} Nxf3+ {[%emt 0:01:59]} 23. Kh1 {[%emt 0:00:28]} Nxh2 {[%emt 0:08:57]} 24. Kxh2 {[%emt 0:00:19]} Qh4 {[%emt 0:00:07]} 25. Rh1 {[%emt 0:02:20]} Rxf2+ {[%emt 0:00:15] Weighted Error Value: White=1.22/Black=0.19 (very precise)} 0-1

[Event "121st Swiss Championship 2022"]
[Site "Samnaun-Compatsch"]
[Date "2022.07.06"]
[Round "4.3"]
[White "Gschnitzer, Adrian"]
[Black "Rohrer, Christophe"]
[Result "1/2-1/2"]
[ECO "C54"]
[WhiteElo "2433"]
[BlackElo "2246"]
[Annotator "TA"]
[PlyCount "66"]
[EventDate "2022.06.28"]
[EventType "swiss"]
[EventCountry "SUI"]
[SourceTitle "playchess.com"]
[Source "ChessBase"]
[SourceQuality "1"]
[TimeControl "40/5400+30:1800+30"]

{[%evp 11,66,11,16,16,32,26,14,18,36,17,17,4,25,29,27,22,33,23,158,77,35,45,73,54,62,51,59,17,29,24,15,15,29,16,28,30,28,16,29,9,57,35,55,32,20,27,14,0,0,0,4,0,0,0,12,0,8]} 1. e4 {[%emt 0:00:13]} e5 {[%emt 0:00:11]} 2. Nf3 {[%emt 0:00:12]} Nc6 {[%emt 0:00:13]} 3. Bc4 {[%emt 0:00:08]} Bc5 {[%emt 0:00:18]} 4. c3 {[%emt 0:00:08]} Nf6 {[%emt 0:00:13]} 5. d3 {[%emt 0:00:08]} d6 {[%emt 0:00:24]} 6. O-O {[%emt 0:00:15]} a6 {[%emt 0:00:23]} 7. a4 {[%emt 0:00:09] C54: Giuoco Piano: 4 c3 Nf6, main lines with 5 d4 and 5 d3.} Ba7 {[%emt 0:00:21]} 8. Re1 {[%emt 0:01:13]} O-O $1 {[%emt 0:00:26] The main line 8...0-0 scores better than 8...h6.} 9. h3 {[%emt 0:00:34]} Ne7 {[%emt 0:04:58]} 10. d4 {[%emt 0:03:41]} Ng6 {[%emt 0:05:32]} 11. Nbd2 {[%emt 0:00:20][%cal Bb1d2,Bd2e4,Be4c3][%mdl 32]} exd4 {[%emt 0:06:05]} 12. cxd4 {[%emt 0:02:48]} d5 {[%emt 0:00:27]} 13. exd5 {[%emt 0:02:45]} Nxd5 {[%emt 0:03:53]} 14. Ne4 {[%emt 0:00:28] [#]} h6 $146 {[%emt 0:02:45] [#]} (14... c6 $11) ({Predecessor:} 14... c6 15. a5 h6 16. Qb3 Nh4 17. Nc5 Nxf3+ 18. Qxf3 Bxc5 19. dxc5 Be6 20. Bd2 Nf6 {½-½ (60) Alekseenko,K (2710)-Ponkratov,P (2659) Ufa 2021}) 15. Bxd5 {[%emt 0:04:15] White is more active.} ({Only move:} 15. Bxh6 $1 {[%mdl 512] And now Bg5 would win.} Be6 (15... Bf5 16. Bg5) 16. Bg5) 15... Qxd5 $16 {[%emt 0:00:39] [#]} 16. Bxh6 $1 {[%emt 0:01:08]} Bf5 {[%emt 0:07:28]} (16... Be6 17. Nc3) 17. Nc3 {[%emt 0:01:14] Pair of Knights!} Qd6 {[%emt 0:05:08]} 18. Bg5 {[%emt 0:02:41]} Rae8 {[%emt 0:06:10]} 19. Qd2 {[%emt 0:07:22]} c6 {[%emt 0:05:36]} 20. Rxe8 {[%emt 0:03:38]} Rxe8 {[%emt 0:00:13]} 21. Re1 {[%emt 0:00:21]} Rxe1+ {[%emt 0:01:53]} 22. Qxe1 {[%emt 0:00:37]} Be6 {[%emt 0:00:48]} 23. Be3 {[%emt 0:06:35][%cal Od4d5]} Bb8 {[%emt 0:05:57]} 24. Qd1 {[%emt 0:13:11]} Bc4 {[%emt 0:05:11]} 25. g3 {[%emt 0:02:59]} Qe7 {[%emt 0:06:43]} (25... Qd7 $11) 26. Kh2 {[%emt 0:06:07]} Nf8 {[%emt 0:09:49]} 27. Qc2 {[%emt 0:08:24]} f6 {[%emt 0:02:16]} 28. Nh4 {[%emt 0:05:46]} Be6 {[%emt 0:00:54]} 29. Ng6 {[%emt 0:05:35] The position is equal.} Nxg6 {[%emt 0:01:01]} 30. Qxg6 {[%emt 0:00:02]} Bf7 {[%emt 0:01:31]} 31. Qg4 {[%emt 0:04:50] aiming for Qc8+.} Be6 {[%emt 0:00:38] Prevents Qc8+.} 32. Qg6 {[%emt 0:00:22]} Bf7 {[%emt 0:00:08]} 33. Qg4 {[%emt 0:00:07] Strongly threatening Qc8+.} Be6 {[%emt 0:00:04] Prevents Qc8+.  Weighted Error Value: White=0.12 (very precise) /Black=0.17 (very precise)} 1/2-1/2

[Event "121st Swiss Championship 2022"]
[Site "Samnaun-Compatsch"]
[Date "2022.07.06"]
[Round "4.4"]
[White "Fecker, Noah"]
[Black "Pogan, Nikolas"]
[Result "1/2-1/2"]
[ECO "B13"]
[WhiteElo "2387"]
[BlackElo "2226"]
[Annotator "TA"]
[PlyCount "69"]
[EventDate "2022.06.28"]
[EventType "swiss"]
[EventCountry "SUI"]
[SourceTitle "playchess.com"]
[Source "ChessBase"]
[SourceQuality "1"]
[TimeControl "40/5400+30:1800+30"]

{[%evp 9,69,12,28,12,20,13,20,17,16,8,13,12,12,0,0,0,0,0,0,0,0,0,0,0,0,0,0,-35,-32,-33,-27,-27,0,0,0,0,0,0,0,0,0,-7,0,-47,-52,-68,-4,-8,0,0,0,0,0,0,0,-2,0,-2,0,-2,0,-12]} 1. e4 {[%emt 0:00:01]} c6 {[%emt 0:04:22]} 2. d4 {[%emt 0:00:07]} d5 {[%emt 0:00:03]} 3. exd5 {[%emt 0:00:07]} cxd5 {[%emt 0:00:06]} 4. Nf3 {[%emt 0:00:02]} Nc6 {[%emt 0:00:32]} 5. Bb5 {[%emt 0:00:10]} Bg4 {[%emt 0:06:39]} 6. h3 {[%emt 0:01:11] B13: Caro-Kann: Exchange Variation and Panov-Botvinnik Attack.} Bxf3 $1 {[%emt 0:04:02] The main line 6...Bxf3 scores better than 6...Bh5.} 7. Qxf3 {[%emt 0:00:03]} a6 {[%emt 0:00:05]} 8. Bxc6+ {[%emt 0:00:38]} bxc6 {[%emt 0:00:01]} 9. O-O {[%emt 0:00:51]} e6 {[%emt 0:00:17]} 10. Bf4 {[%emt 0:02:14]} Nf6 {[%emt 0:01:18]} 11. Nd2 {[%emt 0:02:54]} Bd6 {[%emt 0:06:00]} 12. c4 {[%emt 0:12:26]} O-O {[%emt 0:00:08] [#]} 13. Rfc1 $146 {[%emt 0:03:14]} ({Predecessor:} 13. c5 Bc7 14. b4 a5 15. a3 Qb8 16. Bxc7 Qxc7 17. Rab1 Rfb8 18. Rb3 axb4 19. axb4 {0-1 (45) Stojanovic,M (1690)-Scholz,H (1991) Seefeld 2006}) 13... Bxf4 {[%emt 0:07:53]} 14. Qxf4 {[%emt 0:00:32]} Qb8 {[%emt 0:01:39]} 15. Qxb8 {[%emt 0:04:01]} Rfxb8 {[%emt 0:00:16]} 16. Rc2 {[%emt 0:04:35]} Ne8 {[%emt 0:18:07]} 17. Rac1 {[%emt 0:13:22]} a5 {[%emt 0:01:13]} 18. Kf1 {[%emt 0:08:12]} (18. Nf3 $5 {[%cal Rf3e5]}) 18... a4 {[%emt 0:00:56]} 19. Ke2 {[%emt 0:01:13]} g6 {[%emt 0:04:56]} 20. Kd3 {[%emt 0:02:37]} Nd6 {[%emt 0:00:07]} 21. cxd5 {[%emt 0:02:14]} cxd5 {[%emt 0:00:04]} 22. Rc6 {[%emt 0:02:39] Inhibits Rb6.} Ne8 {[%emt 0:23:31]} 23. R1c2 {[%emt 0:04:09]} Kf8 {[%emt 0:00:05]} 24. g4 {[%emt 0:03:56]} Rb7 {[%emt 0:04:05]} 25. g5 {[%emt 0:04:59]} Rab8 {[%emt 0:02:49]} 26. b3 {[%emt 0:05:00]} (26. Ra6 $11) 26... axb3 $15 {[%emt 0:00:06]} 27. axb3 {[%emt 0:02:15]} Ke7 {[%emt 0:03:08]} (27... Kg7 $15) 28. Rc8 $1 $11 {[%emt 0:03:02] The position is equal.} Kd7 {[%emt 0:00:19]} 29. Rxb8 {[%emt 0:00:57]} Rxb8 {[%emt 0:00:03][%mdl 4096] Endgame KRN-KRN} 30. Ra2 {[%emt 0:00:51]} Nd6 {[%emt 0:00:41]} 31. Ra7+ {[%emt 0:00:35]} Ke8 {[%emt 0:00:17]} 32. Ra6 {[%emt 0:01:38]} Ke7 {[%emt 0:02:01]} 33. Ra7+ {[%emt 0:00:34]} Ke8 {[%emt 0:00:06]} 34. Ra6 {[%emt 0:00:10]} Ke7 {[%emt 0:00:04]} 35. Ra7+ {[%emt 0:00:19] Weighted Error Value: White=0.05 (flawless) /Black=0.07 (flawless)} 1/2-1/2